Workbook

Sheet 1.ºCiclo
B1: Concelho | C1: Escola | D1: Aluno | E1: Faltas prática | F1: Resposta erradas | G1: Total | H1: Data Nascimento (desempate)
B2: Funchal | C2: Externato de São João | D2: Gonçalo Miguel Girão | E2: 0 | F2: 0 | G2: =200 - (E2*5) - (F2*20) -> 200 | H2: 2008-01-02
B3: Santana | C3: EB1/PE/C de Santana | D3: Martim Ferreira da Câmara | E3: 0 | F3: 0 | G3: =200 - (E3*5) - (F3*20) -> 200 | H3: 2008-01-07
B4: Machico | C4: EB1 /PE / Creche de Água de Pena | D4: Gabriel Ramos Barros | E4: 0 | F4: 0 | G4: =200 - (E4*5) - (F4*20) -> 200 | H4: 2008-07-26 | I4: 1º
B5: Machico | C5: Escola Sant'Ana - Externato | D5: Ema Isabel Gomes Ferreira | E5: 0 | F5: 0 | G5: =200 - (E5*5) - (F5*20) -> 200 | H5: 2008-03-29
B6: Santa Cruz | C6: Externato Santo Condestável | D6: Luís Paulo Araújo Freitas | E6: 0 | F6: 0 | G6: =200 - (E6*5) - (F6*20) -> 200 | H6: 2008-04-21 | I6: 3º
B7: Porto Santo | C7: EB1/PE e Creche do Campo de Baixo | D7: Gonçalo Ferreira Drumond | E7: 0 | F7: 0 | G7: =200 - (E7*5) - (F7*20) -> 200 | H7: 2008-07-11 | I7: 2º
B8: Calheta | C8: EB1/PE do Lombo do Guiné | D8: Francisco Paulo | E8: 1 | F8: 0 | G8: =200 - (E8*5) - (F8*20) -> 195
B9: Santana | C9: EB1/PE/C do Faial e São Roque do Faial | D9: Fátima Carolina Camacho Lopes | E9: 2 | F9: 0 | G9: =200 - (E9*5) - (F9*20) -> 190
B10: Câmara de Lobos | C10: EB1/PE Ribeiro Alforra | D10: Ana Catarina Sousa Teixeira | E10: 2 | F10: 0 | G10: =200 - (E10*5) - (F10*20) -> 190
B11: Ponta do Sol | C11: EB1/PE Ponta do Sol | D11: Yuri Freitas | E11: 2 | F11: 0 | G11: =200 - (E11*5) - (F11*20) -> 190
B12: Porto Moniz | C12: EB1/PE /Creche do Porto Moniz | D12: Sara Isabel Abreu Santos | E12: 2 | F12: 0 | G12: =200 - (E12*5) - (F12*20) -> 190
B13: Santa Cruz | C13: EB1/PE Dr. Clemente Tavares | D13: Diogo Bernardo Rodrigues | E13: 0 | F13: 1 | G13: =200 - (E13*5) - (F13*20) -> 180
B14: Ribeira Brava | C14: EB1/PE e Creche da Ribeira Brava | D14: Leonor Agrela | E14: 1 | F14: 1 | G14: =200 - (E14*5) - (F14*20) -> 175
B15: São Vicente | C15: EB1/PE de Ponta Delgada e Boaventura | D15: José Tomás Jesus Benedito | E15: 1 | F15: 1 | G15: =200 - (E15*5) - (F15*20) -> 175
B16: Porto Moniz | C16: EB1/PE /Creche do Porto Moniz | D16: Beatriz Afonso Correia | E16: 1 | F16: 1 | G16: =200 - (E16*5) - (F16*20) -> 175
B17: Câmara de Lobos | C17: EB1/PE do Covão | D17: Armando Gomes | E17: 2 | F17: 1 | G17: =200 - (E17*5) - (F17*20) -> 170
B18: Calheta | C18: EB1/PE da Calheta | D18: Rodrigo Baeta | E18: 2 | F18: 1 | G18: =200 - (E18*5) - (F18*20) -> 170
B19: São Vicente | C19: EB1/PE de Ponta Delgada e Boaventura | D19: Inês dos Santos Andrade | E19: 2 | F19: 1 | G19: =200 - (E19*5) - (F19*20) -> 170
B20: Funchal | C20: Colégio Infante D. Henrique | D20: Rodrigo Sousa Gonçalves | E20: 0 | F20: 2 | G20: =200 - (E20*5) - (F20*20) -> 160
B21: Ponta do Sol | C21: EB1/PE Ponta do Sol | D21: Beatriz Pita | E21: 2 | F21: 2 | G21: =200 - (E21*5) - (F21*20) -> 150
B22: Ribeira Brava | C22: EB1/PE da Tabua | D22: Maria Inês Sousa | E22: 4 | F22: 2 | G22: =200 - (E22*5) - (F22*20) -> 140
B23: Porto Santo | C23: Externato Nossa Senhora da Conceição | D23: Gonçalo Câmara Dias | E23: 4 | F23: 3 | G23: =200 - (E23*5) - (F23*20) -> 120
B24: teste | C24: teste | D24: teste | E24: 3 | F24: 2

Sheet 2.º Ciclo
B2: Escola | C2: Aluno | D2: Faltas Prática | E2: Resposta Erradas | F2: Total | G2: Data nascimento (desempate)
B3: EBS Padre Manuel Álvares | C3: Carolina Carujo | D3: 0 | E3: 0 | F3: =200 - (D3*5) - (E3*20) -> 200 | G3: 2006-01-17
B4: EBS da Ponta do Sol | C4: Andreína Jesus | D4: 0 | E4: 0 | F4: =200 - (D4*5) - (E4*20) -> 200 | G4: 2006-12-01 | H4: 1º
B5: EB23 do Caniço | C5: Ricardo Costa | D5: 0 | E5: 0 | F5: =200 - (D5*5) - (E5*20) -> 200 | G5: 2006-03-10 | H5: 3º
B6: EBS Gonçalves Zarco | C6: Tiago Afonso Teles Fonseca | D6: 0 | E6: 0 | F6: =200 - (D6*5) - (E6*20) -> 200 | G6: 2006-06-28 | H6: 2º
B7: EBS de Santa Cruz | C7: Pedro Alexandre Monteiro | D7: 2 | E7: 0 | F7: =200 - (D7*5) - (E7*20) -> 190
B8: EBS Prof. Dr. Francisco de Freitas Branco | C8: Américo Dantas | D8: 2 | E8: 0 | F8: =200 - (D8*5) - (E8*20) -> 190
B9: EBS D.ª Lucinda Andrade | C9: Luís Góis | D9: 0 | E9: 1 | F9: =200 - (D9*5) - (E9*20) -> 180
B10: EBS da Calheta | C10: Diogo Ferreira | D10: 0 | E10: 1 | F10: =200 - (D10*5) - (E10*20) -> 180
B11: E.B.123/P.E. Prof. Francisco M.S. Barreto | C11: Lucas Jardim | D11: 1 | E11: 1 | F11: =200 - (D11*5) - (E11*20) -> 175
B12: EB23 Dr. Eduardo Brazão de Castro | C12: Paulo Freitas | D12: 1 | E12: 1 | F12: =200 - (D12*5) - (E12*20) -> 175
B13: EB123/PE do Curral das Freiras | C13: Sabrina Figueira | D13: 3 | E13: 1 | F13: =200 - (D13*5) - (E13*20) -> 165
B14: EB 23 da Torre | C14: Tiago Guilherme Ferreira Rodrigues | D14: 0 | E14: 2 | F14: =200 - (D14*5) - (E14*20) -> 160
B15: Externato da Apresentação de Maria | C15: Madalena Barbeito | D15: 0 | E15: 2 | F15: =200 - (D15*5) - (E15*20) -> 160
B16: EB123/PE Porto Cruz | C16: Rúben Bacanhím | D16: 0 | E16: 2 | F16: =200 - (D16*5) - (E16*20) -> 160
B17: EB123/PE Bartolomeu Perestrelo | C17: João Sousa | D17: 1 | E17: 2 | F17: =200 - (D17*5) - (E17*20) -> 155
B18: Colegio Infante D. Henrique | C18: Simão Sales | D18: 2 | E18: 2 | F18: =200 - (D18*5) - (E18*20) -> 150
B19: EB23 do Estreito de Câmara de Lobos | C19: Pedro Tiago Pestana | D19: 3 | E19: 2 | F19: =200 - (D19*5) - (E19*20) -> 145
B20: EBS Dr. Luís Maurílio da Silva Dantas | C20: Emília Santos | D20: 3 | E20: 2 | F20: =200 - (D20*5) - (E20*20) -> 145
B21: Escola B+S Bispo D. Manuel Ferreira Cabral | C21: Hugo André Jesus Freitas | D21: 0 | E21: 3 | F21: =200 - (D21*5) - (E21*20) -> 140
B22: EBS de Machico | C22: Sara Sofia de Vieiros Lixa | D22: 1 | E22: 3 | F22: =200 - (D22*5) - (E22*20) -> 135
B23: EB23 de Santo António | C23: João Bernardo Nóbrega de Gouveia | D23: 2 | E23: 3 | F23: =200 - (D23*5) - (E23*20) -> 130
B24: EB23 Dr. Horácio Bento de Gouveia | C24: Salvador Gomes | D24: 4 | E24: 3 | F24: =200 - (D24*5) - (E24*20) -> 120
B25: EB23 Dr. Alfredo Ferreira Nóbrega Júnior | C25: Vítor Faria | D25: 1 | E25: 4 | F25: =200 - (D25*5) - (E25*20) -> 115
B26: EB23 de São Jorge | C26: Tiago Pacheco | D26: 5 | E26: 3 | F26: =200 - (D26*5) - (E26*20) -> 115
B27: teste | C27: teste | D27: 1 | E27: 3

Sheet 3.º Ciclo
B2: Escola | C2: Aluno | D2: Faltas Prática | E2: Resposta Erradas | F2: Total | G2: Data nascimento (desempate)
B3: EBS de Santa Cruz | C3: Octávio Rodrigo Nunes | D3: 0 | E3: 0 | F3: =200 - (D3*5) - (E3*20) -> 200 | G3: 2004-10-12 | H3: 1º
B4: EBS D.ª Lucinda Andrade | C4: João Hugo Mendes | D4: 0 | E4: 0 | F4: =200 - (D4*5) - (E4*20) -> 200 | G4: 2004-02-04
B5: EB123/PE do Curral das Freiras | C5: Diogo Faria | D5: 0 | E5: 0 | F5: =200 - (D5*5) - (E5*20) -> 200 | G5: 2004-04-21 | H5: 2º
B6: EBS Prof. Dr. Francisco de Freitas Branco | C6: Carolina Freitas | D6: 0 | E6: 0 | F6: =200 - (D6*5) - (E6*20) -> 200 | G6: 2004-02-14 | H6: 3º
B7: EBS da Ponta do Sol | C7: Daniel Tal-Or | D7: 1 | E7: 0 | F7: =200 - (D7*5) - (E7*20) -> 195
B8: EBS Gonçalves Zarco | C8: Gonçalo Andrade | D8: 2 | E8: 0 | F8: =200 - (D8*5) - (E8*20) -> 190
B9: EBS Padre Manuel Álvares | C9: Gonçalo Abreu | D9: 0 | E9: 1 | F9: =200 - (D9*5) - (E9*20) -> 180
B10: EBS da Calheta | C10: Bruno Gouveia | D10: 0 | E10: 1 | F10: =200 - (D10*5) - (E10*20) -> 180
B11: EBS Dr. Luís Maurílio da Silva Dantas | C11: Bruno Faria | D11: 0 | E11: 1 | F11: =200 - (D11*5) - (E11*20) -> 180
B12: Externato da Apresentação de Maria | C12: Henrique Sousa | D12: 0 | E12: 1 | F12: =200 - (D12*5) - (E12*20) -> 180
B13: EB23 do Caniço | C13: Júlio Campos | D13: 0 | E13: 1 | F13: =200 - (D13*5) - (E13*20) -> 180
B14: EB23 de São Jorge | C14: Luciano Gomes | D14: 0 | E14: 1 | F14: =200 - (D14*5) - (E14*20) -> 180
B15: EB23 Dr. Eduardo Brazão de Castro | C15: Leonor Gomes | D15: 0 | E15: 1 | F15: =200 - (D15*5) - (E15*20) -> 180
B16: EB123/PE Bartolomeu Perestrelo | C16: Manuel Andrade | D16: 0 | E16: 1 | F16: =200 - (D16*5) - (E16*20) -> 180
B17: EBS de Machico | C17: Fábio Melim | D17: 1 | E17: 1 | F17: =200 - (D17*5) - (E17*20) -> 175
B18: Colegio Infante D. Henrique | C18: Luís Guilherme Pereira | D18: 1 | E18: 1 | F18: =200 - (D18*5) - (E18*20) -> 175
B19: Escola B+S Bispo D. Manuel Ferreira Cabral | C19: Brayan Alexander Benitez Moreno | D19: 2 | E19: 1 | F19: =200 - (D19*5) - (E19*20) -> 170
B20: E.B.123/P.E. Prof. Francisco M.S. Barreto | C20: Mirko Liden | D20: 0 | E20: 2 | F20: =200 - (D20*5) - (E20*20) -> 160
B21: EB23 da Torre | C21: Joana Filipa Pinto Figueira | D21: 1 | E21: 2 | F21: =200 - (D21*5) - (E21*20) -> 155
B22: EB23 de Santo António | C22: Henrique José Gonçalves França | D22: 2 | E22: 2 | F22: =200 - (D22*5) - (E22*20) -> 150
B23: EB123/PE Porto Cruz | C23: José Diogo Abreu Bacanhím | D23: 3 | E23: 2 | F23: =200 - (D23*5) - (E23*20) -> 145
B24: EB23 Dr. Alfredo Ferreira Nóbrega Júnior | C24: Tiago Silva | D24: 7 | E24: 1 | F24: =200 - (D24*5) - (E24*20) -> 145
B25: EBS Dr. Ângelo Augusto da Silva | C25: Afonso Mendes | D25: 1 | E25: 3 | F25: =200 - (D25*5) - (E25*20) -> 135
B26: teste | C26: teste | D26: 1 | E26: 3
